bitfinex-derivatives/quotes_BTCF0:USTF0_20250119
["timestamp","ask_amount","ask_price","bid_price","bid_amount"]
[1737321344150,0.09855469,105980.0,105970.0,0.75269586]
[1737321344366,0.45935469,105980.0,105970.0,0.75229057]
[1737321344557,0.91175469,105980.0,105970.0,0.75229057]
[1737321345050,0.55095469,105980.0,105970.0,0.75229057]
[1737321345365,0.55095469,105980.0,105970.0,1.09142256]
[1737321346061,0.96308038,105980.0,105940.0,0.37551975]
[1737321346358,0.09856669,105950.0,105940.0,0.37551975]
[1737321346553,0.09856669,105950.0,105940.0,0.73631975]
[1737321347165,0.09856669,105950.0,105940.0,0.7216]
[1737321348467,0.047241,105950.0,105940.0,0.7216]
[1737321348966,0.30132144,105960.0,105940.0,0.77292569]
[1737321349165,0.35264713,105960.0,105950.0,0.3608]
[1737321349367,0.31072215,105960.0,105950.0,1.0244]
[1737321350253,0.22094899,105960.0,105950.0,1.0244]
[1737321351165,0.22094899,105960.0,105950.0,1.02479614]
[1737321351356,0.1696233,105960.0,105950.0,1.02479614]
[1737321351550,0.1696233,105960.0,105950.0,1.0244]
[1737321352262,0.1696233,105960.0,105950.0,1.02479622]
[1737321352463,0.1696233,105960.0,105950.0,1.0247962]
[1737321353156,0.1223853,105960.0,105950.0,1.07612189]
[1737321353357,0.16033343,105970.0,105950.0,1.12296669]
[1737321353564,0.16033343,105970.0,105960.0,0.40843277]
[1737321354067,0.21165912,105970.0,105960.0,0.40843277]
[1737321355060,0.09855869,105970.0,105960.0,0.69117926]
[1737321355663,0.10780721,105970.0,105960.0,0.69117926]
[1737321356066,0.10780721,105970.0,105960.0,0.69590525]
[1737321357161,0.05648152,105970.0,105960.0,0.69590525]
[1737321357361,0.047229,105980.0,105970.0,0.047231]
[1737321357558,0.19384063,105990.0,105970.0,0.41685168]
[1737321357862,0.24106663,105990.0,105980.0,1.078428]
[1737321358082,0.30184957,105990.0,105980.0,1.04478656]
[1737321358270,0.30184957,105990.0,105980.0,0.37438656]
[1737321359269,0.25052388,105990.0,105980.0,0.37438656]
[1737321359464,0.10942503,105990.0,105980.0,0.37438656]
[1737321359665,0.16075072,105990.0,105980.0,0.01358656]
[1737321360368,0.30184957,105990.0,105980.0,0.01358656]
[1737321360768,0.66264957,105990.0,105980.0,0.01358656]
[1737321360964,0.66264957,105990.0,105980.0,0.0076795]
[1737321361570,0.66264957,105990.0,105980.0,0.00295351]
[1737321361769,0.047232,105970.0,105960.0,1.08706129]
[1737321362070,0.09855769,105970.0,105960.0,0.87319533]
[1737321362669,0.09855769,105970.0,105960.0,0.65439575]
[1737321362869,0.09855769,105970.0,105960.0,0.36574123]
[1737321363069,0.09855769,105970.0,105960.0,0.00494123]
[1737321363968,0.09855769,105970.0,105960.0,0.36574123]
[1737321364173,0.10802252,105970.0,105960.0,0.36574123]
[1737321364671,0.10802252,105970.0,105960.0,0.36574138]
[1737321365972,0.10802252,105970.0,105960.0,0.3716491]
[1737321367965,0.10802252,105970.0,105960.0,0.91946662]
[1737321368474,0.10802252,105970.0,105960.0,0.91946652]
[1737321370974,0.10802252,105970.0,105960.0,0.91986245]
[1737321371975,0.10802252,105970.0,105960.0,0.96670352]
[1737321372271,0.10802252,105970.0,105960.0,0.91946652]
[1737321373065,0.10802252,105970.0,105960.0,1.25851641]
[1737321373879,0.10802252,105970.0,105960.0,1.26186627]
[1737321374975,0.00946483,105970.0,105960.0,1.26147034]
[1737321375181,0.047229,105980.0,105960.0,1.36042896]
[1737321375384,0.24106663,105990.0,105970.0,0.622932]
[1737321375680,0.25010905,105990.0,105980.0,0.4715]
[1737321375887,0.25010905,105990.0,105980.0,0.48508813]
[1737321376469,0.25010905,105990.0,105980.0,0.84588813]
[1737321377271,0.1090102,105990.0,105980.0,1.07195832]
[1737321377681,0.05768451,105990.0,105980.0,1.07195832]
[1737321377876,0.1090102,105990.0,105980.0,1.11918632]
[1737321378185,0.1090102,105990.0,105980.0,1.07195832]
[1737321378578,0.1090102,105990.0,105980.0,1.61753192]
[1737321379168,0.1090102,105990.0,105980.0,1.01923192]
[1737321379373,0.16033589,105990.0,105980.0,0.78523192]
[1737321379683,0.16033589,105990.0,105980.0,0.55916173]
[1737321379885,0.1090102,105990.0,105980.0,0.55916008]
[1737321380073,0.16033589,105990.0,105980.0,0.91996008]
[1737321380883,0.16033589,105990.0,105980.0,0.37438648]
[1737321382182,0.25010905,105990.0,105980.0,0.37438648]
[1737321382384,0.25010905,105990.0,105980.0,0.37438642]
[1737321383275,0.30143474,105990.0,105980.0,0.01358642]
[1737321383786,0.66223474,105990.0,105980.0,0.01358642]
[1737321383986,0.30143474,105990.0,105980.0,0.01358642]
[1737321385281,0.25010905,105990.0,105980.0,0.01358642]
[1737321385884,0.19878336,105990.0,105980.0,0.42161442]
[1737321386081,0.25010905,105990.0,105980.0,0.42161442]
[1737321386284,0.41904388,105990.0,105980.0,0.42161442]
[1737321387690,0.1090102,105990.0,105980.0,0.64781339]
[1737321389891,0.1090102,105990.0,105980.0,0.64781234]
[1737321390299,0.1090102,105990.0,105980.0,0.91037649]
[1737321390496,0.1090102,105990.0,105980.0,1.19312298]
[1737321394294,0.1090102,105990.0,105980.0,1.193519]
[1737321395298,0.1090102,105990.0,105980.0,1.146291]
[1737321395908,0.16033589,105990.0,105980.0,0.785491]
[1737321396112,0.16033589,105990.0,105980.0,0.78509498]
[1737321396113,0.52113589,105990.0,105980.0,0.78509498]
[1737321396314,0.52113589,105990.0,105980.0,0.7791883]
[1737321396503,0.52113589,105990.0,105980.0,0.55298933]
[1737321398315,0.52113589,105990.0,105980.0,0.00767869]
[1737321401012,0.047232,105970.0,105960.0,0.81707134]
[1737321401211,0.09855769,105970.0,105960.0,0.83065951]
[1737321401609,0.09855769,105970.0,105960.0,0.60125951]
[1737321401816,0.51068338,105970.0,105960.0,0.24006316]
[1737321402117,1.18328338,105970.0,105960.0,0.23415526]
[1737321402920,1.18328338,105970.0,105960.0,0.23415615]
[1737321403605,1.18328338,105970.0,105960.0,0.00472687]
[1737321403606,1.35305688,105970.0,105960.0,0.00472687]
[1737321403807,0.047232,105960.0,105950.0,0.3608]
[1737321404113,0.14988338,105960.0,105950.0,0.3667087]
[1737321404317,0.14988338,105960.0,105950.0,0.3608]
[1737321404705,0.09855769,105960.0,105950.0,0.3608]
[1737321405105,0.18337782,105960.0,105950.0,0.58706019]
[1737321405305,0.23470351,105960.0,105950.0,0.58706019]
[1737321407417,0.23470351,105960.0,105950.0,0.59296883]
[1737321407810,0.23470351,105960.0,105950.0,0.58706019]
[1737321408111,0.23470351,105960.0,105950.0,0.59296885]
[1737321408316,0.23470351,105960.0,105950.0,0.58706019]
[1737321409320,0.14988338,105960.0,105950.0,0.3608]
[1737321412325,0.23470351,105960.0,105950.0,0.3608]
[1737321412926,0.047236,105950.0,105940.0,0.5906]
[1737321413124,0.09856169,105950.0,105940.0,0.59650886]
[1737321413518,0.09856169,105950.0,105940.0,0.5906]
[1737321413719,0.09856169,105950.0,105940.0,0.59532718]
[1737321415225,0.09856169,105950.0,105940.0,0.60123599]
[1737321415722,0.09856169,105950.0,105940.0,0.60419032]
[1737321416220,0.09856169,105950.0,105940.0,0.60418998]
[1737321416721,0.10598639,105950.0,105940.0,0.60418998]
[1737321419131,0.10598639,105950.0,105940.0,0.83045017]
[1737321422835,0.10598639,105950.0,105940.0,1.11319666]
[1737321423330,0.10598639,105950.0,105940.0,1.11319675]
[1737321423923,0.10598639,105950.0,105940.0,0.52259675]
[1737321424336,0.10598639,105950.0,105940.0,0.88339675]
[1737321424634,0.10598639,105950.0,105940.0,0.60065026]
[1737321425022,0.10598639,105950.0,105940.0,0.60065107]
[1737321426133,0.19080652,105950.0,105940.0,0.60065107]
[1737321426625,0.19080652,105950.0,105940.0,0.23985107]
[1737321426830,0.19080652,105950.0,105940.0,0.23394199]
[1737321427031,0.19080652,105950.0,105940.0,0.23394259]
[1737321427233,0.55160652,105950.0,105940.0,0.23394259]
[1737321427533,0.60293221,105950.0,105940.0,0.00768253]
[1737321427834,0.5796265,105950.0,105940.0,0.00295482]
[1737321428019,0.63095219,105950.0,105940.0,0.00295482]
[1737321428225,0.63095219,105950.0,105930.0,0.28274649]
[1737321428426,0.32096669,105940.0,105930.0,0.29338431]
[1737321429339,0.51863476,105940.0,105930.0,0.01063782]
[1737321431633,0.51863476,105940.0,105930.0,0.00472792]
[1737321432126,0.56996045,105940.0,105930.0,0.00472792]
[1737321432329,0.80736045,105940.0,105930.0,0.00472792]
[1737321432635,0.80736045,105940.0,105930.0,0.00472796]
[1737321433922,0.72253249,105940.0,105930.0,0.00472796]
[1737321435234,0.72253249,105940.0,105930.0,0.00472803]
[1737321435435,0.75105927,105940.0,105930.0,0.00472803]
[1737321435833,0.047245,105930.0,105920.0,0.46129266]
[1737321436033,0.09857069,105930.0,105920.0,0.46602081]
[1737321436231,0.14989638,105930.0,105920.0,0.82682081]
[1737321436431,0.14989638,105930.0,105920.0,0.36560472]
[1737321436630,0.14989638,105930.0,105920.0,0.37151483]
[1737321436837,0.14989638,105930.0,105920.0,0.36560472]
[1737321437033,0.14136689,105940.0,105920.0,0.46418041]
[1737321437232,0.14136689,105940.0,105930.0,0.899445]
[1737321437440,0.27576289,105950.0,105930.0,0.9104617]
[1737321437744,0.27576289,105950.0,105940.0,0.6004]
[1737321438037,0.27576289,105950.0,105940.0,0.61103805]
[1737321438623,0.19077624,105950.0,105940.0,0.61103805]
[1737321440237,0.30382538,105950.0,105940.0,0.78368358]
[1737321440436,0.30382538,105950.0,105940.0,0.78368149]
[1737321440633,0.30382538,105950.0,105940.0,0.53817262]
[1737321440842,0.54062538,105950.0,105940.0,0.53817262]
[1737321441136,0.54062538,105950.0,105940.0,0.17737262]
[1737321441332,1.14242538,105950.0,105940.0,0.17264553]
[1737321441529,1.19375107,105950.0,105940.0,0.16495659]
[1737321441725,0.047241,105940.0,105930.0,0.13145524]
[1737321441929,0.047245,105930.0,105920.0,0.23240589]
[1737321442135,0.14989638,105930.0,105920.0,0.23713434]
[1737321442334,0.14989638,105930.0,105920.0,0.23713436]
[1737321442834,0.14989638,105930.0,105920.0,0.23713429]
[1737321443038,0.09857069,105930.0,105920.0,0.59793429]
[1737321443240,0.047245,105930.0,105920.0,0.59793429]
[1737321443538,0.09857069,105930.0,105920.0,0.59793429]
[1737321443937,0.047245,105930.0,105920.0,0.59793429]
[1737321444133,0.16029414,105930.0,105920.0,0.41277812]
[1737321444937,0.11304914,105930.0,105920.0,0.46410381]
[1737321445139,0.19777665,105930.0,105920.0,0.46410381]
[1737321445436,0.19777665,105930.0,105920.0,0.41277812]
[1737321446031,0.08472751,105930.0,105920.0,0.41277812]
[1737321446640,0.08472751,105930.0,105920.0,0.41868761]
[1737321447040,0.08472751,105930.0,105920.0,0.4700133]
[1737321447743,0.13197251,105930.0,105920.0,0.41868761]
[1737321449137,0.16029414,105930.0,105920.0,0.41868761]
[1737321449446,0.047243,105940.0,105930.0,0.047245]
[1737321449647,0.047243,105940.0,105930.0,0.41868261]
[1737321450535,0.047243,105940.0,105930.0,0.41868111]
[1737321450742,0.13199354,105940.0,105930.0,0.41868111]
[1737321451542,0.13199354,105940.0,105930.0,0.41868104]
[1737321452043,0.13199354,105940.0,105930.0,0.41868102]
[1737321452739,0.13199354,105940.0,105930.0,0.41277212]
[1737321453745,0.13199354,105940.0,105930.0,0.41609567]
[1737321454349,0.08475054,105940.0,105930.0,0.46742136]
[1737321454544,0.21842285,105960.0,105940.0,0.047241]
[1737321454741,0.17118985,105960.0,105950.0,1.4572]
[1737321454942,0.17118985,105960.0,105950.0,1.56972043]
[1737321455456,0.17118985,105960.0,105950.0,1.58448904]
[1737321455844,0.17118985,105960.0,105950.0,1.58448504]
[1737321456044,0.21842185,105960.0,105950.0,1.53315935]
[1737321456755,0.04864835,105960.0,105950.0,1.53315935]
[1737321457451,0.00141635,105960.0,105950.0,1.53315935]
[1737321457655,0.05900362,105970.0,105960.0,0.047232]
[1737321457950,0.05900362,105970.0,105960.0,0.42161862]
[1737321458147,0.11032931,105970.0,105960.0,0.42161862]
[1737321458855,0.047224,105980.0,105960.0,0.47294431]
[1737321459045,0.047224,105980.0,105970.0,0.45935369]
[1737321459360,0.047224,105980.0,105970.0,0.47294031]
[1737321459745,0.047224,105980.0,105970.0,0.41570739]
[1737321460346,0.047224,105980.0,105970.0,1.00040739]
[1737321461050,0.09854669,105990.0,105980.0,0.047223]
[1737321461245,0.05850772,105990.0,105980.0,0.89280239]
[1737321461446,0.05850772,105990.0,105980.0,1.13680239]
[1737321461654,0.05850772,105990.0,105980.0,1.13680136]
[1737321462355,0.01128672,105990.0,105980.0,1.18812705]
[1737321462558,0.04863179,106000.0,105980.0,1.18812705]
[1737321462858,0.04863179,106000.0,105990.0,0.408019]
[1737321463055,0.04863179,106000.0,105990.0,0.36375321]
[1737321463260,0.11142308,106000.0,105990.0,0.36375321]
[1737321466870,0.11142308,106000.0,105980.0,0.3608]
[1737321467073,0.09854469,105990.0,105980.0,0.36375327]
[1737321467260,0.09854469,105990.0,105980.0,0.36375337]
[1737321473173,0.09854469,105990.0,105980.0,0.00767888]
[1737321473571,0.23919119,105990.0,105980.0,0.00767888]
[1737321474462,0.1878655,105990.0,105980.0,0.00767888]
[1737321475373,0.1878655,105990.0,105980.0,0.36847888]
[1737321476071,0.1406465,105990.0,105980.0,0.41980457]
[1737321476267,0.1406465,105990.0,105980.0,0.4729341]
[1737321476472,0.1406465,105990.0,105980.0,0.42160841]
[1737321476673,1.6878655,105990.0,105980.0,0.42160841]
[1737321476873,1.547219,105990.0,105980.0,0.37438541]
[1737321477176,1.547219,105990.0,105980.0,0.36847888]
[1737321477377,1.547219,105990.0,105980.0,0.42160828]
[1737321477674,1.59854469,105990.0,105980.0,0.42160828]
[1737321479775,1.547219,105990.0,105980.0,0.42160828]
[1737321480075,1.59854469,105990.0,105980.0,0.37438528]
[1737321480475,1.64987038,105990.0,105980.0,0.01358528]
[1737321480772,0.047223,105980.0,105970.0,0.3608]
[1737321480978,0.047223,105980.0,105970.0,0.36670723]
[1737321481280,0.047223,105980.0,105970.0,0.41393523]
[1737321481478,0.047223,105980.0,105970.0,0.46562857]
[1737321481671,0.047223,105980.0,105970.0,0.41430288]
[1737321482278,1.54722,105990.0,105980.0,0.047223]
[1737321482473,0.1878665,105990.0,105980.0,0.41392965]
[1737321483072,0.23919219,105990.0,105980.0,0.41392965]
[1737321483480,0.23919219,105990.0,105980.0,0.36670665]
[1737321483979,0.29051788,105990.0,105980.0,0.36670665]
[1737321484276,0.29051788,105990.0,105980.0,0.00590671]
[1737321485275,0.31906523,105990.0,105980.0,0.00590671]
[1737321485476,0.67986523,105990.0,105980.0,0.00590671]
[1737321486175,0.047223,105980.0,105970.0,0.3608]
[1737321486482,0.047223,105980.0,105960.0,0.3608]
[1737321486483,0.047228,105970.0,105960.0,0.3608]
[1737321486679,0.09855369,105970.0,105960.0,0.3608]
[1737321487582,0.09855369,105970.0,105950.0,0.36116827]
[1737321487583,0.05132569,105970.0,105950.0,0.36116827]
[1737321487781,1.64988338,105960.0,105950.0,0.36116848]
[1737321487976,1.59855769,105960.0,105950.0,0.36116848]
[1737321488283,1.59855769,105960.0,105950.0,0.36707667]
[1737321488485,1.59855769,105960.0,105950.0,0.36707672]
[1737321489684,1.73994203,105960.0,105950.0,0.36707672]
[1737321489871,1.73994203,105960.0,105950.0,0.36706723]
[1737321490272,1.73994203,105960.0,105950.0,0.00590817]
[1737321490682,1.73994203,105960.0,105950.0,0.37143484]
[1737321490884,1.73994203,105960.0,105950.0,0.01063484]
[1737321491274,1.73994203,105960.0,105950.0,0.00472667]
[1737321491986,1.79126772,105960.0,105950.0,0.00472667]
[1737321492187,0.047237,105950.0,105930.0,0.65774087]
[1737321492380,0.05132569,105940.0,105930.0,0.65774087]
[1737321492781,0.05132569,105940.0,105930.0,0.66069548]
[1737321492982,0.59536269,105950.0,105930.0,0.66069548]
[1737321493186,0.05132569,105940.0,105930.0,0.66069548]
[1737321493387,0.05132569,105940.0,105930.0,0.66033642]
[1737321493787,0.73674703,105950.0,105930.0,0.66033642]
[1737321493983,0.73674703,105950.0,105940.0,0.3608]
[1737321494191,0.73674703,105950.0,105940.0,0.36375461]
[1737321494884,0.14138434,105950.0,105940.0,0.36375461]
[1737321495082,0.05132569,105950.0,105940.0,0.88545461]
[1737321496287,0.05132569,105950.0,105940.0,0.89136341]
[1737321499396,0.05132569,105950.0,105940.0,0.88545461]
[1737321499597,0.09856269,105950.0,105940.0,0.36375461]
[1737321499796,0.34116269,105950.0,105940.0,0.36375461]
[1737321500092,0.047246,105930.0,105920.0,0.3608]
[1737321500296,0.09857169,105930.0,105920.0,0.3608]
[1737321500500,0.09857169,105930.0,105920.0,0.36670976]
[1737321500798,0.09857169,105930.0,105920.0,0.3608]
[1737321501301,0.09865641,105930.0,105920.0,0.3608]
[1737321502189,0.09865641,105930.0,105920.0,0.36552802]
[1737321502591,0.14990138,105930.0,105920.0,0.00472802]
[1737321502793,0.047254,105920.0,105910.0,0.3608]
[1737321502994,0.09857969,105920.0,105910.0,0.36552828]
[1737321503805,0.09857969,105920.0,105910.0,0.3655285]
[1737321505501,0.05132569,105920.0,105910.0,0.3655285]
[1737321505803,0.05139814,105920.0,105910.0,0.4127825]
[1737321506397,0.05139814,105920.0,105910.0,0.41869312]
[1737321506606,0.05132569,105920.0,105910.0,0.37143912]
[1737321506804,0.10984909,105920.0,105910.0,0.37143912]
[1737321506998,0.06268444,105920.0,105910.0,0.41869312]
[1737321507200,0.06268444,105920.0,105910.0,0.4186929]
[1737321508996,0.10984909,105920.0,105910.0,0.3714389]
[1737321509193,0.35304909,105920.0,105910.0,0.3655284]
[1737321509502,0.71384909,105920.0,105910.0,0.0047284]
[1737321510103,0.71384909,105920.0,105900.0,0.1]
[1737321510304,0.63138069,105910.0,105900.0,0.10472924]
[1737321510497,0.63138069,105910.0,105900.0,0.11064091]
[1737321510803,0.63138069,105910.0,105900.0,0.10472924]
[1737321511498,0.63138069,105910.0,105900.0,0.1047294]
[1737321511804,0.99218069,105910.0,105900.0,0.1047294]
[1737321512003,0.99218069,105910.0,105900.0,0.10768528]
[1737321512505,0.04736188,105910.0,105900.0,0.11359685]
[1737321512703,0.09868757,105910.0,105900.0,0.47439685]
[1737321513004,0.09868757,105910.0,105900.0,0.47439577]
[1737321514292,0.09868757,105910.0,105900.0,0.47474393]
[1737321514501,0.04736188,105910.0,105900.0,0.52165477]
[1737321514703,0.04736188,105910.0,105900.0,0.5216542]
[1737321515006,0.09868757,105910.0,105900.0,0.47474347]
[1737321516701,0.09868757,105910.0,105900.0,0.11394364]
[1737321516893,0.09868757,105910.0,105900.0,0.47474364]
[1737321518396,0.09858069,105910.0,105900.0,0.11394364]
[1737321519003,0.09858069,105910.0,105900.0,0.47474364]
[1737321519196,0.09858069,105910.0,105900.0,0.11394364]
[1737321519405,0.09858069,105910.0,105900.0,0.1135953]
[1737321519902,0.09858069,105910.0,105900.0,0.11394364]
[1737321520097,0.09858069,105910.0,105900.0,0.47474364]
[1737321520506,0.09858069,105910.0,105900.0,0.52200264]
[1737321520701,0.09869225,105910.0,105900.0,0.52200264]
[1737321521508,0.09869225,105910.0,105900.0,0.5216543]
[1737321521809,0.09869225,105910.0,105900.0,0.47474365]
[1737321523013,0.09858069,105910.0,105900.0,0.47474365]
[1737321524303,0.09858069,105910.0,105900.0,0.47474464]
[1737321524608,0.09864942,105910.0,105900.0,0.47474464]
[1737321524809,0.09858069,105910.0,105900.0,0.47474464]
[1737321526114,0.3524313,105910.0,105900.0,0.47439581]
[1737321526315,0.3524313,105910.0,105900.0,0.47474464]
[1737321526709,0.3524313,105910.0,105900.0,0.4747448]
[1737321528015,0.3524313,105910.0,105900.0,0.47474513]
[1737321528416,0.23996503,105910.0,105900.0,0.47474513]
[1737321529916,0.23996503,105910.0,105900.0,0.11394513]
[1737321530111,0.60076503,105910.0,105900.0,0.11394513]
[1737321530517,0.60076503,105910.0,105900.0,0.11359587]
[1737321531416,0.6290419,105910.0,105900.0,0.11359587]
[1737321532017,0.047259,105900.0,105890.0,0.35310927]
[1737321532217,0.09868712,105900.0,105890.0,0.35310927]
[1737321533322,0.04736143,105900.0,105890.0,0.35310927]
[1737321533617,0.16018201,105900.0,105890.0,0.57963199]
[1737321534214,0.16018201,105900.0,105890.0,0.57963204]
[1737321536308,0.16018201,105900.0,105890.0,0.57931166]
[1737321538605,0.17118411,105900.0,105890.0,0.57931166]
[1737321538812,0.17118411,105900.0,105890.0,0.62657466]
[1737321539720,0.14102573,105910.0,105900.0,0.047259]
[1737321539923,0.14102573,105910.0,105900.0,0.67286981]
[1737321540113,0.11974719,105910.0,105900.0,0.67286981]
[1737321540608,0.21832688,105910.0,105900.0,0.67286981]
[1737321541012,0.21832688,105910.0,105900.0,0.67286959]
[1737321541416,0.16700119,105910.0,105900.0,0.67286959]
[1737321541622,0.047254,105910.0,105900.0,1.0126811]
[1737321541924,0.047254,105910.0,105900.0,1.01708885]
[1737321542124,0.047254,105910.0,105900.0,1.01740929]
[1737321542419,0.09857969,105910.0,105900.0,1.01708885]
[1737321542619,0.047254,105910.0,105900.0,0.96092792]
[1737321543225,0.047254,105910.0,105900.0,0.96124837]
[1737321543718,0.56662376,105920.0,105900.0,0.96124837]
[1737321543923,0.56662376,105920.0,105910.0,0.667254]
[1737321544116,0.61794945,105920.0,105910.0,0.68084831]
[1737321544316,0.61794945,105920.0,105910.0,0.63359431]
[1737321544512,0.61794945,105920.0,105910.0,0.27279431]
[1737321544717,0.61794945,105920.0,105910.0,0.63359431]
[1737321545012,0.97874945,105920.0,105910.0,0.01359431]
[1737321545218,0.97874945,105920.0,105910.0,0.52352956]
[1737321545416,0.97874945,105920.0,105910.0,0.51761898]
[1737321547021,0.97874945,105920.0,105910.0,0.00768373]
[1737321547221,0.97874945,105920.0,105910.0,0.01359496]
[1737321547424,1.547254,105910.0,105900.0,0.58740537]
[1737321547720,1.85497969,105910.0,105900.0,0.58740537]
[1737321548318,1.90630538,105910.0,105900.0,0.58740537]
[1737321548517,2.07596659,105910.0,105900.0,0.3608]
[1737321549318,2.0246409,105910.0,105900.0,0.3608]
[1737321549824,2.07596659,105910.0,105900.0,0.3608]
[1737321550025,2.07596659,105910.0,105900.0,0.34470567]
[1737321550822,0.047259,105900.0,105890.0,0.22692586]
[1737321551020,0.14991038,105900.0,105890.0,0.22692586]
[1737321551325,0.14991038,105900.0,105890.0,0.22660537]
[1737321552326,0.65591038,105900.0,105890.0,0.22660537]
[1737321552628,0.047263,105890.0,105880.0,0.81445627]
[1737321552820,0.09858869,105890.0,105880.0,0.81445627]
[1737321553015,0.09858869,105890.0,105880.0,0.29355627]
[1737321553425,0.34048869,105890.0,105880.0,0.29355627]
[1737321554427,0.34048869,105890.0,105870.0,0.36221664]
[1737321554428,1.547268,105880.0,105870.0,0.36221664]
[1737321554624,1.59859369,105880.0,105870.0,0.36221664]
[1737321555426,1.59859369,105880.0,105870.0,0.41540114]
[1737321555720,1.59859369,105880.0,105870.0,0.41570242]
[1737321555923,1.59859369,105880.0,105870.0,0.6990323]
[1737321556427,1.59859369,105880.0,105870.0,0.69873088]
[1737321557324,1.59859369,105880.0,105870.0,0.70346075]
[1737321557630,1.547268,105880.0,105870.0,0.70376218]
[1737321557823,0.047268,105880.0,105870.0,0.70376218]
[1737321558225,0.047268,105880.0,105870.0,1.08167958]
[1737321558529,0.06268896,105890.0,105880.0,0.047268]
[1737321558530,0.05862727,105890.0,105880.0,0.047268]
[1737321558726,0.05862727,105890.0,105880.0,0.66571023]
[1737321558927,0.10995296,105890.0,105880.0,0.66601166]
[1737321559129,0.05862727,105890.0,105880.0,0.66571023]
[1737321559323,0.047264,105890.0,105880.0,0.95199577]
[1737321559531,0.05132569,105900.0,105880.0,0.95199577]
[1737321559830,0.047259,105900.0,105890.0,0.90526431]
[1737321560130,0.047259,105900.0,105890.0,0.9188622]
[1737321560329,0.05854767,105900.0,105890.0,0.9188622]
[1737321560530,0.05854767,105900.0,105890.0,1.20219208]
[1737321561524,0.10987336,105900.0,105890.0,1.20219019]
[1737321563329,0.10987336,105900.0,105890.0,0.91886029]
[1737321563535,0.05854767,105900.0,105890.0,0.91886029]
[1737321563721,0.01128867,105900.0,105890.0,0.97018598]
[1737321563927,0.2682379,105920.0,105910.0,0.047254]
[1737321564127,0.2682379,105920.0,105910.0,0.42164999]
[1737321564330,0.16966121,105920.0,105910.0,0.83377568]
[1737321564527,0.93118463,105940.0,105910.0,0.83377568]
[1737321564730,0.98251032,105940.0,105930.0,0.76914608]
[1737321564930,0.80415952,105940.0,105930.0,0.78274207]
[1737321565234,0.81550316,105940.0,105930.0,0.78274207]
[1737321565938,0.81550316,105940.0,105930.0,0.42194207]
[1737321566139,0.81550316,105940.0,105930.0,0.42164099]
[1737321566437,0.81550316,105940.0,105930.0,0.42163613]
[1737321566833,0.61811033,105940.0,105930.0,0.42163613]
[1737321567135,0.61811033,105940.0,105930.0,0.37439113]
[1737321567727,0.61811033,105940.0,105930.0,0.42163613]
[1737321567937,0.61811033,105940.0,105930.0,0.59107165]
[1737321569334,0.10991033,105940.0,105930.0,0.59107165]
[1737321569537,0.54662569,105960.0,105950.0,0.047236]
[1737321569829,0.59385969,105960.0,105950.0,0.4157176]
[1737321570034,0.59385969,105960.0,105950.0,0.0076816]
[1737321570237,0.64518538,105960.0,105950.0,0.0076816]
[1737321571037,0.047236,105950.0,105940.0,0.16943552]
[1737321571237,1.84246169,105950.0,105940.0,0.16943552]
[1737321571842,2.25458738,105950.0,105940.0,0.16226154]
[1737321572036,0.047245,105930.0,105920.0,0.62423679]
[1737321572237,0.14989638,105930.0,105920.0,0.62423679]
[1737321572536,0.67039638,105930.0,105920.0,0.17062138]
[1737321573640,0.67039638,105930.0,105920.0,0.00141608]
[1737321575147,0.61907069,105930.0,105920.0,0.00141608]
[1737321575439,0.35867069,105930.0,105920.0,0.36221608]
[1737321575655,0.09857069,105930.0,105920.0,0.40946608]
[1737321576138,0.09857069,105930.0,105920.0,0.36221608]
[1737321576538,0.16094668,105930.0,105920.0,0.36221608]
[1737321576742,0.10962099,105930.0,105920.0,0.36221608]
[1737321580245,0.10962099,105930.0,105920.0,0.40946608]
[1737321581044,0.10962099,105930.0,105920.0,0.41419397]
[1737321581344,0.10962099,105930.0,105920.0,0.36694397]
[1737321582047,0.10962099,105930.0,105920.0,0.37285388]
[1737321583144,0.16094668,105930.0,105920.0,0.00909892]
[1737321583351,0.36032099,105930.0,105920.0,0.00909892]
[1737321583742,0.77244668,105930.0,105920.0,0.00295495]
[1737321584236,0.77244668,105930.0,105910.0,0.3608]
[1737321584543,0.09857569,105920.0,105910.0,0.36848384]
[1737321584942,0.09857569,105920.0,105910.0,0.00768384]
[1737321585544,0.45937569,105920.0,105890.0,0.64412988]
[1737321585743,0.09858469,105900.0,105890.0,0.65772541]
[1737321585942,0.09858469,105900.0,105890.0,0.29692541]
[1737321586140,0.34078469,105900.0,105890.0,0.29692541]
[1737321586346,0.34078469,105900.0,105890.0,0.29101431]
[1737321586749,0.70158469,105900.0,105890.0,0.00768443]
[1737321586941,0.70158469,105900.0,105890.0,0.00295555]
[1737321587652,0.34078469,105900.0,105890.0,0.00295555]
[1737321588151,0.047263,105890.0,105880.0,0.3608]
[1737321588356,0.09858869,105890.0,105880.0,0.36671224]
[1737321589051,0.09858869,105890.0,105880.0,0.3608]
[1737321589856,0.047268,105880.0,105870.0,0.84721664]
[1737321590055,0.09859369,105880.0,105870.0,0.85312927]
[1737321590252,0.09859369,105880.0,105870.0,0.60241664]
[1737321590644,0.09859369,105880.0,105870.0,0.36221664]
[1737321591352,0.09859369,105880.0,105860.0,0.60200864]
[1737321591551,0.05132569,105870.0,105860.0,0.60200864]
[1737321591751,0.047268,105880.0,105860.0,0.60200864]
[1737321591752,0.05132569,105880.0,105860.0,0.60200864]
[1737321591953,0.047272,105870.0,105860.0,0.60200864]
[1737321593359,0.09859769,105870.0,105860.0,0.60200864]
[1737321595867,0.09859769,105870.0,105860.0,0.60673905]
[1737321596861,0.09859769,105870.0,105860.0,0.36563905]
[1737321597652,0.09859769,105870.0,105860.0,0.3685956]
[1737321598767,0.1094544,105870.0,105860.0,0.3685956]
[1737321599362,0.1094544,105870.0,105860.0,0.36859578]
[1737321599667,0.16078009,105870.0,105860.0,0.36859578]
[1737321599969,0.52158009,105870.0,105860.0,0.00295659]
[1737321600161,0.77318009,105870.0,105850.0,0.6092]
[1737321600466,0.09860269,105860.0,105850.0,0.25135691]
[1737321601167,0.45940269,105860.0,105850.0,0.25135691]
[1737321601472,0.09860269,105860.0,105850.0,0.61688819]
[1737321601766,0.09860269,105860.0,105850.0,0.61688792]
[1737321602561,0.09860269,105860.0,105850.0,0.25608792]
[1737321602768,0.09860269,105860.0,105850.0,0.616888]
[1737321603259,0.45940269,105860.0,105850.0,0.00295692]
[1737321603865,0.047281,105850.0,105840.0,0.3608]
[1737321604070,0.09860669,105850.0,105840.0,0.36848848]
[1737321604275,0.09860669,105850.0,105840.0,0.00295711]
[1737321605762,0.09860669,105850.0,105840.0,0.00768876]
[1737321607074,0.047281,105850.0,105840.0,0.36848876]
[1737321607260,0.047281,105850.0,105840.0,0.61848876]
[1737321607466,0.047281,105850.0,105840.0,0.86908876]
[1737321608670,0.047277,105860.0,105850.0,0.047281]
[1737321608866,0.047277,105860.0,105850.0,0.46413801]
[1737321609065,0.047274,105870.0,105860.0,0.047277]
[1737321609269,0.047274,105870.0,105860.0,0.71583401]